[Event "Titled Tuesday Blitz July 18 Late 2023"]
[White "Gatterer, Florian"]
[Black "Przybylski, Wojciech"]
[WhiteFideId "811688"]
[BlackFideId "1117599"]
[WhiteElo "2419"]
[BlackElo "2548"]
[Result "0-1"]
[Round "5"]
[TimeControl "180+2"]
[Date "2023.07.18"]
[WhiteClock "0:00:00"]
[BlackClock "0:00:09"]
[Board "90"]

1. Nf3 {[%clk 0:02:54]}  Nf6 {[%clk 0:02:59]} 2. g3 {[%clk 0:02:51]}  d5 {[%clk 0:02:57]} 3. Bg2 {[%clk 0:02:50]}  Bg4 {[%clk 0:02:56]} 4. O-O {[%clk 0:02:49]}  Nbd7 {[%clk 0:02:55]} 5. d4 {[%clk 0:02:48]}  e6 {[%clk 0:02:55]} 6. h3 {[%clk 0:02:48]}  Bxf3 {[%clk 0:02:53]} 7. Bxf3 {[%clk 0:02:48]}  Bd6 {[%clk 0:02:53]} 8. c4 {[%clk 0:02:43]}  c6 {[%clk 0:02:53]} 9. cxd5 {[%clk 0:02:42]}  cxd5 {[%clk 0:02:50]} 10. Nc3 {[%clk 0:02:38]}  a6 {[%clk 0:02:50]} 11. Bg5 {[%clk 0:02:24]}  O-O {[%clk 0:02:47]} 12. e4 {[%clk 0:02:20]}  dxe4 {[%clk 0:02:42]} 13. Nxe4 {[%clk 0:02:20]}  Be7 {[%clk 0:02:42]} 14. Nxf6+ {[%clk 0:02:19]}  Bxf6 {[%clk 0:02:38]} 15. Bxf6 {[%clk 0:02:16]}  Nxf6 {[%clk 0:02:38]} 16. Bxb7 {[%clk 0:02:15]}  Ra7 {[%clk 0:02:37]} 17. Bf3 {[%clk 0:02:07]}  Rd7 {[%clk 0:02:37]} 18. Qe2 {[%clk 0:02:08]}  a5 {[%clk 0:02:34]} 19. Rfd1 {[%clk 0:02:07]}  Rxd4 {[%clk 0:02:33]} 20. Rxd4 {[%clk 0:02:05]}  Qxd4 {[%clk 0:02:33]} 21. Rd1 {[%clk 0:02:06]}  Qb6 {[%clk 0:02:31]} 22. b3 {[%clk 0:01:57]}  h6 {[%clk 0:02:29]} 23. Kg2 {[%clk 0:01:57]}  Rc8 {[%clk 0:02:27]} 24. Qd2 {[%clk 0:01:49]}  e5 {[%clk 0:02:21]} 25. Qd6 {[%clk 0:01:41]}  Qxd6 {[%clk 0:02:06]} 26. Rxd6 {[%clk 0:01:41]}  e4 {[%clk 0:02:05]} 27. Bd1 {[%clk 0:01:14]}  Rc1 {[%clk 0:02:04]} 28. a4 {[%clk 0:01:05]}  Kf8 {[%clk 0:02:02]} 29. g4 {[%clk 0:01:02]}  Ke7 {[%clk 0:02:01]} 30. Rd4 {[%clk 0:01:02]}  Rc3 {[%clk 0:01:56]} 31. h4 {[%clk 0:00:53]}  g5 {[%clk 0:01:54]} 32. hxg5 {[%clk 0:00:52]}  hxg5 {[%clk 0:01:53]} 33. Kf1 {[%clk 0:00:50]}  Ke6 {[%clk 0:01:48]} 34. Ke1 {[%clk 0:00:49]}  Ke5 {[%clk 0:01:46]} 35. Rd8 {[%clk 0:00:49]}  Nd5 {[%clk 0:01:38]} 36. Kd2 {[%clk 0:00:45]}  Rd3+ {[%clk 0:01:37]} 37. Ke1 {[%clk 0:00:40]}  Nb4 {[%clk 0:00:54]} 38. Ra8 {[%clk 0:00:30]}  Rd5 {[%clk 0:00:50]} 39. Be2 {[%clk 0:00:30]}  Kf4 {[%clk 0:00:43]} 40. Bc4 {[%clk 0:00:30]}  Re5 {[%clk 0:00:36]} 41. Rf8 {[%clk 0:00:24]}  Kxg4 {[%clk 0:00:31]} 42. Rxf7 {[%clk 0:00:24]}  Kh5 {[%clk 0:00:23]} 43. Ke2 {[%clk 0:00:22]}  Kg6 {[%clk 0:00:21]} 44. Rc7 {[%clk 0:00:20]}  Nc2 {[%clk 0:00:16]} 45. Bf7+ {[%clk 0:00:19]}  Kf6 {[%clk 0:00:16]} 46. Bc4 {[%clk 0:00:19]}  Nd4+ {[%clk 0:00:16]} 47. Ke3 {[%clk 0:00:19]}  Nf5+ {[%clk 0:00:16]} 48. Ke2 {[%clk 0:00:18]}  Nd6 {[%clk 0:00:15]} 49. Rc6 {[%clk 0:00:18]}  Ke7 {[%clk 0:00:16]} 50. Rc7+ {[%clk 0:00:17]}  Kd8 {[%clk 0:00:16]} 51. Rc6 {[%clk 0:00:17]}  Kd7 {[%clk 0:00:16]} 52. Ra6 {[%clk 0:00:17]}  g4 {[%clk 0:00:15]} 53. Ke3 {[%clk 0:00:17]}  Rf5 {[%clk 0:00:15]} 54. Bb5+ {[%clk 0:00:14]}  Ke7 {[%clk 0:00:14]} 55. Bc4 {[%clk 0:00:13]}  Rf3+ {[%clk 0:00:13]} 56. Kd4 {[%clk 0:00:12]}  Rxf2 {[%clk 0:00:13]} 57. Ra7+ {[%clk 0:00:12]}  Kf6 {[%clk 0:00:13]} 58. Kc5 {[%clk 0:00:10]}  Nf5 {[%clk 0:00:12]} 59. Rf7+ {[%clk 0:00:10]}  Ke5 {[%clk 0:00:11]} 60. Ra7 {[%clk 0:00:10]}  g3 {[%clk 0:00:11]} 61. Rxa5 {[%clk 0:00:10]}  g2 {[%clk 0:00:11]} 62. Kb4+ {[%clk 0:00:10]}  Kf4 {[%clk 0:00:11]} 63. Ra8 {[%clk 0:00:10]}  g1=Q {[%clk 0:00:11]} 64. Rf8 {[%clk 0:00:10]}  Qe1+ {[%clk 0:00:10]} 65. Kb5 {[%clk 0:00:11]}  Ke3 {[%clk 0:00:09]} 66. a5 {[%clk 0:00:11]}  Nd4+ {[%clk 0:00:10]} 67. Kb6 {[%clk 0:00:10]}  Qb4+ {[%clk 0:00:09]} 68. Kc7 {[%clk 0:00:00]}  Rxf8 {[%clk 0:00:09]} 0-1


[Site "https://www.chess.com"]

[Event "Titled Tuesday Blitz July 18 Late 2023"]
[White "Tikhonov, Viacheslav"]
[Black "Zenin, Dmitry"]
[WhiteFideId "44196407"]
[BlackFideId "4127897"]
[WhiteElo "2544"]
[BlackElo "2414"]
[Result "1/2-1/2"]
[Round "5"]
[TimeControl "180+2"]
[Date "2023.07.18"]
[WhiteClock "0:01:14"]
[BlackClock "0:00:22"]
[Board "92"]

1. d4 {[%clk 0:02:59]}  Nf6 {[%clk 0:02:59]} 2. c4 {[%clk 0:02:59]}  g6 {[%clk 0:02:59]} 3. Nc3 {[%clk 0:02:58]}  Bg7 {[%clk 0:03:00]} 4. e4 {[%clk 0:02:58]}  d6 {[%clk 0:03:00]} 5. Be2 {[%clk 0:02:58]}  O-O {[%clk 0:03:01]} 6. h4 {[%clk 0:02:59]}  e5 {[%clk 0:02:51]} 7. d5 {[%clk 0:02:58]}  a5 {[%clk 0:02:47]} 8. h5 {[%clk 0:02:58]}  Na6 {[%clk 0:02:46]} 9. h6 {[%clk 0:02:58]}  Bh8 {[%clk 0:02:45]} 10. Bg5 {[%clk 0:02:47]}  Nc5 {[%clk 0:02:35]} 11. Rh4 {[%clk 0:02:42]}  Qe8 {[%clk 0:02:30]} 12. Nf3 {[%clk 0:02:40]}  Nh5 {[%clk 0:01:55]} 13. g3 {[%clk 0:02:20]}  f6 {[%clk 0:01:52]} 14. Be3 {[%clk 0:02:20]}  f5 {[%clk 0:01:44]} 15. Ng5 {[%clk 0:02:02]}  f4 {[%clk 0:01:43]} 16. Bxc5 {[%clk 0:02:01]}  dxc5 {[%clk 0:01:37]} 17. Rxh5 {[%clk 0:01:45]}  gxh5 {[%clk 0:01:36]} 18. Bxh5 {[%clk 0:01:45]}  Qe7 {[%clk 0:01:33]} 19. d6 {[%clk 0:01:31]}  Qxd6 {[%clk 0:01:31]} 20. Qxd6 {[%clk 0:01:16]}  cxd6 {[%clk 0:01:31]} 21. Nd5 {[%clk 0:01:17]}  Bf6 {[%clk 0:01:28]} 22. gxf4 {[%clk 0:01:15]}  exf4 {[%clk 0:01:25]} 23. Nf3 {[%clk 0:01:05]}  Bxb2 {[%clk 0:01:03]} 24. Rb1 {[%clk 0:01:04]}  Be5 {[%clk 0:01:04]} 25. Ne7+ {[%clk 0:00:58]}  Kh8 {[%clk 0:01:02]} 26. Ng5 {[%clk 0:00:59]}  Bf6 {[%clk 0:00:57]} 27. Nxc8 {[%clk 0:00:52]}  Bxg5 {[%clk 0:00:52]} 28. Nxd6 {[%clk 0:00:51]}  Bxh6 {[%clk 0:00:48]} 29. Rxb7 {[%clk 0:00:51]}  Bg7 {[%clk 0:00:26]} 30. Rc7 {[%clk 0:00:43]}  Rad8 {[%clk 0:00:21]} 31. Nf7+ {[%clk 0:00:42]}  Rxf7 {[%clk 0:00:21]} 32. Bxf7 {[%clk 0:00:43]}  f3 {[%clk 0:00:18]} 33. Bd5 {[%clk 0:00:37]}  Bc3+ {[%clk 0:00:14]} 34. Kd1 {[%clk 0:00:37]}  Rb8 {[%clk 0:00:13]} 35. Kc2 {[%clk 0:00:37]}  Bd4 {[%clk 0:00:12]} 36. Rb7 {[%clk 0:00:36]}  Rxb7 {[%clk 0:00:11]} 37. Bxb7 {[%clk 0:00:37]}  Bxf2 {[%clk 0:00:11]} 38. e5 {[%clk 0:00:37]}  Bd4 {[%clk 0:00:11]} 39. e6 {[%clk 0:00:36]}  Kg7 {[%clk 0:00:05]} 40. Bxf3 {[%clk 0:00:36]}  Kf6 {[%clk 0:00:05]} 41. Bg4 {[%clk 0:00:33]}  h5 {[%clk 0:00:05]} 42. Bxh5 {[%clk 0:00:33]}  Kxe6 {[%clk 0:00:05]} 43. Bf3 {[%clk 0:00:34]}  Kd6 {[%clk 0:00:05]} 44. Bd5 {[%clk 0:00:35]}  Kc7 {[%clk 0:00:06]} 45. Kb3 {[%clk 0:00:36]}  Kb6 {[%clk 0:00:06]} 46. Ka4 {[%clk 0:00:36]}  Bc3 {[%clk 0:00:06]} 47. Be4 {[%clk 0:00:37]}  Bd4 {[%clk 0:00:07]} 48. Bd3 {[%clk 0:00:38]}  Be5 {[%clk 0:00:07]} 49. Kb3 {[%clk 0:00:39]}  Bd4 {[%clk 0:00:08]} 50. Be4 {[%clk 0:00:40]}  Be5 {[%clk 0:00:08]} 51. Kc2 {[%clk 0:00:41]}  Bd4 {[%clk 0:00:09]} 52. Bd5 {[%clk 0:00:40]}  Be5 {[%clk 0:00:09]} 53. Bf7 {[%clk 0:00:41]}  Bd4 {[%clk 0:00:09]} 54. Be8 {[%clk 0:00:42]}  Be5 {[%clk 0:00:10]} 55. Kd3 {[%clk 0:00:43]}  Bd4 {[%clk 0:00:10]} 56. Ke4 {[%clk 0:00:44]}  Bc3 {[%clk 0:00:10]} 57. Kd3 {[%clk 0:00:44]}  Bb2 {[%clk 0:00:11]} 58. Bd7 {[%clk 0:00:44]}  Ba1 {[%clk 0:00:12]} 59. Kc2 {[%clk 0:00:45]}  Bd4 {[%clk 0:00:12]} 60. Kb3 {[%clk 0:00:46]}  Be5 {[%clk 0:00:12]} 61. Ka4 {[%clk 0:00:47]}  Bd4 {[%clk 0:00:12]} 62. Kb3 {[%clk 0:00:47]}  Be5 {[%clk 0:00:12]} 63. Ka3 {[%clk 0:00:48]}  Bd4 {[%clk 0:00:13]} 64. Bf5 {[%clk 0:00:48]}  Be5 {[%clk 0:00:13]} 65. Bc2 {[%clk 0:00:49]}  Bd4 {[%clk 0:00:13]} 66. Ba4 {[%clk 0:00:49]}  Be5 {[%clk 0:00:14]} 67. Bb5 {[%clk 0:00:50]}  Bd4 {[%clk 0:00:14]} 68. Ka4 {[%clk 0:00:51]}  Be5 {[%clk 0:00:14]} 69. Kb3 {[%clk 0:00:52]}  Bd4 {[%clk 0:00:15]} 70. a4 {[%clk 0:00:53]}  Be5 {[%clk 0:00:15]} 71. Kc2 {[%clk 0:00:54]}  Bd4 {[%clk 0:00:15]} 72. Kd3 {[%clk 0:00:55]}  Be5 {[%clk 0:00:16]} 73. Ke4 {[%clk 0:00:55]}  Ba1 {[%clk 0:00:16]} 74. Be8 {[%clk 0:00:56]}  Bb2 {[%clk 0:00:17]} 75. Kd5 {[%clk 0:00:57]}  Ba1 {[%clk 0:00:17]} 76. Bg6 {[%clk 0:00:57]}  Bb2 {[%clk 0:00:17]} 77. Bb1 {[%clk 0:00:58]}  Ba1 {[%clk 0:00:17]} 78. Kd6 {[%clk 0:00:59]}  Bb2 {[%clk 0:00:18]} 79. Kd7 {[%clk 0:01:00]}  Ba1 {[%clk 0:00:18]} 80. Be4 {[%clk 0:01:00]}  Bb2 {[%clk 0:00:18]} 81. Bd5 {[%clk 0:01:01]}  Ba1 {[%clk 0:00:19]} 82. Kd6 {[%clk 0:01:02]}  Bb2 {[%clk 0:00:19]} 83. Ke6 {[%clk 0:01:03]}  Ba1 {[%clk 0:00:19]} 84. Ke7 {[%clk 0:01:04]}  Bb2 {[%clk 0:00:20]} 85. Kd7 {[%clk 0:01:05]}  Ba1 {[%clk 0:00:20]} 86. Ke6 {[%clk 0:01:06]}  Bb2 {[%clk 0:00:20]} 87. Kf5 {[%clk 0:01:07]}  Ba1 {[%clk 0:00:20]} 88. Ke4 {[%clk 0:01:08]}  Bb2 {[%clk 0:00:21]} 89. Kd3 {[%clk 0:01:09]}  Ba1 {[%clk 0:00:21]} 90. Kc2 {[%clk 0:01:09]}  Bh8 {[%clk 0:00:21]} 91. Kd3 {[%clk 0:01:10]}  Bg7 {[%clk 0:00:22]} 92. Ke4 {[%clk 0:01:11]}  Bh8 {[%clk 0:00:22]} 93. Kf5 {[%clk 0:01:12]}  Ba1 {[%clk 0:00:22]} 94. Ke6 {[%clk 0:01:13]}  Bb2 {[%clk 0:00:22]} 95. Kd7 {[%clk 0:01:14]} 1/2-1/2


[Site "https://www.chess.com"]

[Event "Titled Tuesday Blitz July 18 Late 2023"]
[White "MFatigue"]
[Black "Romero Ruscalleda, Josep"]
[BlackFideId "2231859"]
[WhiteElo "2528"]
[BlackElo "2378"]
[Result "1-0"]
[Round "5"]
[TimeControl "180+2"]
[Date "2023.07.18"]
[WhiteClock "0:00:09"]
[BlackClock "0:00:00"]
[Board "96"]

1. e4 {[%clk 0:03:00]}  g6 {[%clk 0:03:00]} 2. Nc3 {[%clk 0:03:00]}  Bg7 {[%clk 0:03:01]} 3. g3 {[%clk 0:03:00]}  d6 {[%clk 0:03:01]} 4. Bg2 {[%clk 0:03:01]}  c5 {[%clk 0:03:00]} 5. d3 {[%clk 0:03:02]}  Nc6 {[%clk 0:03:00]} 6. f4 {[%clk 0:03:02]}  Nf6 {[%clk 0:02:58]} 7. Nf3 {[%clk 0:03:03]}  O-O {[%clk 0:02:57]} 8. O-O {[%clk 0:03:03]}  Bd7 {[%clk 0:02:47]} 9. h3 {[%clk 0:03:03]}  Qc8 {[%clk 0:02:46]} 10. Kh2 {[%clk 0:03:03]}  Re8 {[%clk 0:02:43]} 11. Ne2 {[%clk 0:03:03]}  e5 {[%clk 0:02:39]} 12. g4 {[%clk 0:03:04]}  exf4 {[%clk 0:02:35]} 13. Bxf4 {[%clk 0:03:05]}  Ne5 {[%clk 0:02:33]} 14. Ng3 {[%clk 0:03:03]}  Bc6 {[%clk 0:02:15]} 15. Qd2 {[%clk 0:03:01]}  Nfd7 {[%clk 0:02:09]} 16. Bh6 {[%clk 0:02:49]}  Nxf3+ {[%clk 0:02:00]} 17. Rxf3 {[%clk 0:02:50]}  Ne5 {[%clk 0:01:59]} 18. Rf2 {[%clk 0:02:51]}  Bxh6 {[%clk 0:01:59]} 19. Qxh6 {[%clk 0:02:50]}  Qxg4 {[%clk 0:01:55]} 20. Raf1 {[%clk 0:02:39]}  Qd7 {[%clk 0:01:53]} 21. c3 {[%clk 0:02:35]}  Re7 {[%clk 0:01:28]} 22. d4 {[%clk 0:02:18]}  cxd4 {[%clk 0:01:20]} 23. cxd4 {[%clk 0:02:18]}  Nd3 {[%clk 0:01:20]} 24. Rf6 {[%clk 0:02:02]}  Rf8 {[%clk 0:01:07]} 25. Nh5 {[%clk 0:01:53]}  gxh5 {[%clk 0:01:01]} 26. R1f5 {[%clk 0:01:53]}  Ne5 {[%clk 0:00:41]} 27. dxe5 {[%clk 0:01:52]}  Rxe5 {[%clk 0:00:42]} 28. Rxd6 {[%clk 0:01:03]}  Qe7 {[%clk 0:00:35]} 29. Rdf6 {[%clk 0:00:58]}  Rxf5 {[%clk 0:00:27]} 30. Rxf5 {[%clk 0:00:59]}  Kh8 {[%clk 0:00:19]} 31. Rxh5 {[%clk 0:00:57]}  f6 {[%clk 0:00:19]} 32. Qf4 {[%clk 0:00:50]}  Rg8 {[%clk 0:00:17]} 33. Rh6 {[%clk 0:00:42]}  Rg6 {[%clk 0:00:14]} 34. Rxg6 {[%clk 0:00:40]}  hxg6 {[%clk 0:00:14]} 35. Qh6+ {[%clk 0:00:41]}  Kg8 {[%clk 0:00:13]} 36. Qxg6+ {[%clk 0:00:41]}  Kf8 {[%clk 0:00:14]} 37. Qf5 {[%clk 0:00:38]}  Bd7 {[%clk 0:00:13]} 38. Qf4 {[%clk 0:00:34]}  Kf7 {[%clk 0:00:12]} 39. a3 {[%clk 0:00:32]}  Qc5 {[%clk 0:00:12]} 40. h4 {[%clk 0:00:26]}  Qh5 {[%clk 0:00:11]} 41. Bf3 {[%clk 0:00:27]}  Qh7 {[%clk 0:00:10]} 42. h5 {[%clk 0:00:22]}  Ke7 {[%clk 0:00:10]} 43. Qc7 {[%clk 0:00:20]}  Qh6 {[%clk 0:00:09]} 44. Qc5+ {[%clk 0:00:19]}  Ke8 {[%clk 0:00:08]} 45. Kg3 {[%clk 0:00:18]}  Qg7+ {[%clk 0:00:07]} 46. Kf2 {[%clk 0:00:19]}  Qh6 {[%clk 0:00:06]} 47. Qd6 {[%clk 0:00:17]}  Qg5 {[%clk 0:00:06]} 48. Qb8+ {[%clk 0:00:16]}  Ke7 {[%clk 0:00:06]} 49. Qxb7 {[%clk 0:00:12]}  Qd2+ {[%clk 0:00:05]} 50. Kg3 {[%clk 0:00:13]}  Qg5+ {[%clk 0:00:06]} 51. Kf2 {[%clk 0:00:13]}  Qd2+ {[%clk 0:00:06]} 52. Kf1 {[%clk 0:00:13]}  Qd3+ {[%clk 0:00:02]} 53. Be2 {[%clk 0:00:13]}  Qb1+ {[%clk 0:00:01]} 54. Kf2 {[%clk 0:00:13]}  Qc1 {[%clk 0:00:01]} 55. Qb4+ {[%clk 0:00:13]}  Ke8 {[%clk 0:00:00]} 56. Qd4 {[%clk 0:00:09]} 1-0


[Site "https://www.chess.com"]

[Event "Titled Tuesday Blitz July 18 Late 2023"]
[White "Shubenkova, Veronika"]
[Black "Gerbelli Neto, Eduardo"]
[WhiteFideId "44124040"]
[BlackFideId "2103281"]
[WhiteElo "2525"]
[BlackElo "2378"]
[Result "0-1"]
[Round "5"]
[TimeControl "180+2"]
[Date "2023.07.18"]
[WhiteClock "0:00:03"]
[BlackClock "0:00:19"]
[Board "97"]

1. e4 {[%clk 0:02:37]}  e5 {[%clk 0:02:58]} 2. Nf3 {[%clk 0:02:37]}  Nc6 {[%clk 0:02:58]} 3. Bb5 {[%clk 0:02:37]}  a6 {[%clk 0:02:58]} 4. Bxc6 {[%clk 0:02:37]}  dxc6 {[%clk 0:02:58]} 5. O-O {[%clk 0:02:38]}  Bg4 {[%clk 0:02:58]} 6. h3 {[%clk 0:02:37]}  h5 {[%clk 0:02:57]} 7. d3 {[%clk 0:02:36]}  Qf6 {[%clk 0:02:57]} 8. Be3 {[%clk 0:02:36]}  Bxf3 {[%clk 0:02:56]} 9. Qxf3 {[%clk 0:02:36]}  Qxf3 {[%clk 0:02:56]} 10. gxf3 {[%clk 0:02:37]}  Bd6 {[%clk 0:02:52]} 11. Nd2 {[%clk 0:02:36]}  Ne7 {[%clk 0:02:51]} 12. Nc4 {[%clk 0:02:36]}  f5 {[%clk 0:02:48]} 13. Nxd6+ {[%clk 0:02:35]}  cxd6 {[%clk 0:02:49]} 14. f4 {[%clk 0:02:35]}  exf4 {[%clk 0:02:20]} 15. Bxf4 {[%clk 0:02:35]}  O-O-O {[%clk 0:02:20]} 16. Rae1 {[%clk 0:02:30]}  Kd7 {[%clk 0:02:16]} 17. Bg5 {[%clk 0:02:25]}  Rde8 {[%clk 0:02:16]} 18. f4 {[%clk 0:02:22]}  g6 {[%clk 0:02:11]} 19. h4 {[%clk 0:02:18]}  c5 {[%clk 0:02:05]} 20. Kg2 {[%clk 0:02:17]}  Nc6 {[%clk 0:02:04]} 21. Bf6 {[%clk 0:02:11]}  Rhf8 {[%clk 0:02:03]} 22. Bc3 {[%clk 0:02:12]}  b5 {[%clk 0:02:03]} 23. a3 {[%clk 0:02:08]}  a5 {[%clk 0:02:03]} 24. b3 {[%clk 0:02:07]}  b4 {[%clk 0:02:02]} 25. axb4 {[%clk 0:02:07]}  axb4 {[%clk 0:02:03]} 26. Bb2 {[%clk 0:02:07]}  Ra8 {[%clk 0:01:56]} 27. Ra1 {[%clk 0:02:03]}  Rxa1 {[%clk 0:01:39]} 28. Bxa1 {[%clk 0:02:04]}  Ra8 {[%clk 0:01:37]} 29. Kf3 {[%clk 0:02:01]}  Ra2 {[%clk 0:01:36]} 30. Rg1 {[%clk 0:01:56]}  Ne7 {[%clk 0:01:18]} 31. Bf6 {[%clk 0:01:34]}  Rxc2 {[%clk 0:01:13]} 32. Bxe7 {[%clk 0:01:33]}  Kxe7 {[%clk 0:01:13]} 33. Rxg6 {[%clk 0:01:34]}  fxe4+ {[%clk 0:01:14]} 34. Kxe4 {[%clk 0:01:32]}  Rh2 {[%clk 0:01:08]} 35. Kf5 {[%clk 0:01:29]}  Rxh4 {[%clk 0:01:06]} 36. Rg7+ {[%clk 0:01:29]}  Ke8 {[%clk 0:00:59]} 37. Rh7 {[%clk 0:01:26]}  Rh3 {[%clk 0:00:56]} 38. Ke6 {[%clk 0:01:24]}  Kf8 {[%clk 0:00:56]} 39. f5 {[%clk 0:01:21]}  Rxd3 {[%clk 0:00:53]} 40. Kf6 {[%clk 0:01:16]}  Kg8 {[%clk 0:00:52]} 41. Rxh5 {[%clk 0:01:08]}  Rxb3 {[%clk 0:00:52]} 42. Rg5+ {[%clk 0:01:08]}  Kf8 {[%clk 0:00:51]} 43. Rh5 {[%clk 0:01:08]}  Kg8 {[%clk 0:00:51]} 44. Rg5+ {[%clk 0:01:06]}  Kf8 {[%clk 0:00:50]} 45. Kg6 {[%clk 0:01:06]}  Rf3 {[%clk 0:00:40]} 46. Rg1 {[%clk 0:01:03]}  b3 {[%clk 0:00:39]} 47. Ra1 {[%clk 0:01:03]}  b2 {[%clk 0:00:35]} 48. Ra8+ {[%clk 0:01:01]}  Ke7 {[%clk 0:00:35]} 49. Ra7+ {[%clk 0:00:58]}  Kd8 {[%clk 0:00:34]} 50. Rb7 {[%clk 0:00:58]}  Rg3+ {[%clk 0:00:30]} 51. Kf7 {[%clk 0:00:56]}  Rg2 {[%clk 0:00:30]} 52. f6 {[%clk 0:00:54]}  c4 {[%clk 0:00:31]} 53. Ke6 {[%clk 0:00:53]}  c3 {[%clk 0:00:30]} 54. Kxd6 {[%clk 0:00:47]}  Rd2+ {[%clk 0:00:30]} 55. Ke6 {[%clk 0:00:45]}  Rf2 {[%clk 0:00:25]} 56. Rb3 {[%clk 0:00:25]}  c2 {[%clk 0:00:23]} 57. Kd6 {[%clk 0:00:03]}  Rd2+ {[%clk 0:00:19]} 58. Kc6 {[%clk 0:00:01]}  c1=Q+ {[%clk 0:00:19]} 59. Kb6 {[%clk 0:00:01]}  b1=Q {[%clk 0:00:19]} 60. Ka6 {[%clk 0:00:02]}  Qxb3 {[%clk 0:00:18]} 61. f7 {[%clk 0:00:03]}  Qa1# {[%clk 0:00:19]} 0-1


[Site "https://www.chess.com"]

[Event "Titled Tuesday Blitz July 18 Late 2023"]
[White "ExchangeAB"]
[Black "Estrada Nieto, Julian"]
[BlackFideId "5101018"]
[WhiteElo "2368"]
[BlackElo "2524"]
[Result "0-1"]
[Round "5"]
[TimeControl "180+2"]
[Date "2023.07.18"]
[WhiteClock "0:00:15"]
[BlackClock "0:00:21"]
[Board "99"]

1. d4 {[%clk 0:03:00]}  d5 {[%clk 0:03:00]} 2. Nc3 {[%clk 0:03:00]}  Nf6 {[%clk 0:02:59]} 3. Bf4 {[%clk 0:03:00]}  c6 {[%clk 0:03:00]} 4. e3 {[%clk 0:02:58]}  Bf5 {[%clk 0:03:00]} 5. f3 {[%clk 0:02:59]}  e6 {[%clk 0:02:59]} 6. g4 {[%clk 0:02:58]}  Bg6 {[%clk 0:02:59]} 7. h4 {[%clk 0:02:58]}  h5 {[%clk 0:03:00]} 8. g5 {[%clk 0:02:56]}  Nfd7 {[%clk 0:03:00]} 9. Bd3 {[%clk 0:02:55]}  Bxd3 {[%clk 0:03:00]} 10. Qxd3 {[%clk 0:02:55]}  g6 {[%clk 0:03:00]} 11. O-O-O {[%clk 0:02:50]}  Bg7 {[%clk 0:03:00]} 12. e4 {[%clk 0:02:46]}  O-O {[%clk 0:02:59]} 13. Nge2 {[%clk 0:02:44]}  Nb6 {[%clk 0:02:57]} 14. Be5 {[%clk 0:02:16]}  Bxe5 {[%clk 0:02:47]} 15. dxe5 {[%clk 0:02:17]}  Nc4 {[%clk 0:02:37]} 16. f4 {[%clk 0:02:11]}  Qb6 {[%clk 0:02:36]} 17. b3 {[%clk 0:02:01]}  Qe3+ {[%clk 0:02:35]} 18. Qxe3 {[%clk 0:02:00]}  Nxe3 {[%clk 0:02:35]} 19. Rd3 {[%clk 0:01:47]}  Ng4 {[%clk 0:02:35]} 20. Rf1 {[%clk 0:01:46]}  Nd7 {[%clk 0:02:33]} 21. exd5 {[%clk 0:01:41]}  cxd5 {[%clk 0:02:32]} 22. Nb5 {[%clk 0:01:37]}  Nc5 {[%clk 0:02:14]} 23. Rc3 {[%clk 0:01:34]}  Ne4 {[%clk 0:02:13]} 24. Rc7 {[%clk 0:01:32]}  Rfc8 {[%clk 0:02:02]} 25. Ned4 {[%clk 0:01:15]}  a6 {[%clk 0:01:48]} 26. Rxc8+ {[%clk 0:01:08]}  Rxc8 {[%clk 0:01:49]} 27. Na3 {[%clk 0:01:00]}  b5 {[%clk 0:01:34]} 28. Nb1 {[%clk 0:00:57]}  Ne3 {[%clk 0:01:24]} 29. Rf3 {[%clk 0:00:53]}  Ng2 {[%clk 0:01:20]} 30. Re3 {[%clk 0:00:45]}  Nxf4 {[%clk 0:01:18]} 31. Nd2 {[%clk 0:00:34]}  Ng2 {[%clk 0:00:56]} 32. Rh3 {[%clk 0:00:31]}  Nf4 {[%clk 0:00:53]} 33. Rf3 {[%clk 0:00:28]}  Ng2 {[%clk 0:00:47]} 34. Rh3 {[%clk 0:00:28]}  b4 {[%clk 0:00:44]} 35. Nxe4 {[%clk 0:00:26]}  dxe4 {[%clk 0:00:44]} 36. Rg3 {[%clk 0:00:26]}  Nf4 {[%clk 0:00:40]} 37. Re3 {[%clk 0:00:24]}  Ng2 {[%clk 0:00:40]} 38. Rxe4 {[%clk 0:00:24]}  Rc3 {[%clk 0:00:37]} 39. Kb2 {[%clk 0:00:23]}  Rh3 {[%clk 0:00:35]} 40. Nc6 {[%clk 0:00:23]}  Rxh4 {[%clk 0:00:34]} 41. Rxh4 {[%clk 0:00:21]}  Nxh4 {[%clk 0:00:34]} 42. Nxb4 {[%clk 0:00:22]}  Nf3 {[%clk 0:00:35]} 43. Nd3 {[%clk 0:00:21]}  Nxg5 {[%clk 0:00:32]} 44. c4 {[%clk 0:00:20]}  h4 {[%clk 0:00:31]} 45. Nf4 {[%clk 0:00:20]}  Kf8 {[%clk 0:00:27]} 46. b4 {[%clk 0:00:19]}  Ke7 {[%clk 0:00:24]} 47. Kc3 {[%clk 0:00:17]}  h3 {[%clk 0:00:24]} 48. Ne2 {[%clk 0:00:16]}  Ne4+ {[%clk 0:00:20]} 49. Kd4 {[%clk 0:00:17]}  h2 {[%clk 0:00:21]} 50. Kxe4 {[%clk 0:00:15]}  h1=Q+ {[%clk 0:00:21]} 0-1


[Site "https://www.chess.com"]

[Event "Titled Tuesday Blitz July 18 Late 2023"]
[White "Prieto Aranguren, Alain"]
[Black "Martinez Reyes, Pedro Ramon"]
[WhiteFideId "2268906"]
[BlackFideId "3901807"]
[WhiteElo "2368"]
[BlackElo "2519"]
[Result "0-1"]
[Round "5"]
[TimeControl "180+2"]
[Date "2023.07.18"]
[WhiteClock "0:00:26"]
[BlackClock "0:00:46"]
[Board "100"]

1. e4 {[%clk 0:03:00]}  e5 {[%clk 0:02:58]} 2. Nf3 {[%clk 0:03:00]}  Nc6 {[%clk 0:02:56]} 3. Bb5 {[%clk 0:03:00]}  Nf6 {[%clk 0:02:50]} 4. d3 {[%clk 0:03:00]}  Bc5 {[%clk 0:02:45]} 5. O-O {[%clk 0:02:59]}  O-O {[%clk 0:02:39]} 6. c3 {[%clk 0:02:58]}  d5 {[%clk 0:02:36]} 7. Bxc6 {[%clk 0:02:41]}  bxc6 {[%clk 0:02:35]} 8. Nxe5 {[%clk 0:02:40]}  dxe4 {[%clk 0:02:35]} 9. d4 {[%clk 0:02:39]}  Bb6 {[%clk 0:02:17]} 10. Nxc6 {[%clk 0:02:37]}  Qe8 {[%clk 0:02:11]} 11. Ne5 {[%clk 0:02:34]}  c5 {[%clk 0:02:09]} 12. Bg5 {[%clk 0:02:29]}  cxd4 {[%clk 0:02:00]} 13. Bxf6 {[%clk 0:02:23]}  gxf6 {[%clk 0:01:59]} 14. Ng4 {[%clk 0:02:23]}  Qe6 {[%clk 0:01:57]} 15. h3 {[%clk 0:02:12]}  f5 {[%clk 0:01:56]} 16. Nh2 {[%clk 0:02:11]}  Ba6 {[%clk 0:01:51]} 17. Re1 {[%clk 0:02:10]}  d3 {[%clk 0:01:45]} 18. Nd2 {[%clk 0:02:07]}  Kh8 {[%clk 0:01:44]} 19. Ndf1 {[%clk 0:02:06]}  Rg8 {[%clk 0:01:43]} 20. Qd2 {[%clk 0:02:05]}  Qg6 {[%clk 0:01:35]} 21. g3 {[%clk 0:02:00]}  h5 {[%clk 0:01:26]} 22. h4 {[%clk 0:01:54]}  Bb7 {[%clk 0:01:24]} 23. Qf4 {[%clk 0:01:21]}  Kh7 {[%clk 0:01:13]} 24. Ne3 {[%clk 0:01:19]}  Bc8 {[%clk 0:01:14]} 25. Nd5 {[%clk 0:01:10]}  Qxg3+ {[%clk 0:01:09]} 26. Qxg3 {[%clk 0:01:09]}  Rxg3+ {[%clk 0:01:10]} 27. Kh1 {[%clk 0:01:07]}  Rg6 {[%clk 0:00:59]} 28. Nxb6 {[%clk 0:01:03]}  axb6 {[%clk 0:00:59]} 29. f3 {[%clk 0:00:55]}  Bb7 {[%clk 0:00:57]} 30. Rg1 {[%clk 0:00:47]}  e3 {[%clk 0:00:53]} 31. Rxg6 {[%clk 0:00:46]}  fxg6 {[%clk 0:00:53]} 32. Kg1 {[%clk 0:00:44]}  d2 {[%clk 0:00:48]} 33. Nf1 {[%clk 0:00:38]}  f4 {[%clk 0:00:47]} 34. Rd1 {[%clk 0:00:26]}  Bxf3 {[%clk 0:00:46]} 0-1


[Site "https://www.chess.com"]